fUST/lending_fUST_20260414
["ID","MTS","AMOUNT","RATE_DAILY","PERIOD"]
[420487069,1776150246695,500.0,7.509e-05,2]
[420487070,1776150246737,500.0,7.509e-05,2]
[420487071,1776150246782,500.0,7.509e-05,2]
[420487072,1776150246898,500.0,7.509e-05,2]
[420487073,1776150246988,500.0,7.509e-05,2]
[420487074,1776150247029,500.0,7.509e-05,2]
[420487075,1776150247069,500.0,7.509e-05,2]
[420487076,1776150247117,500.0,7.509e-05,2]
[420487077,1776150247159,500.0,7.509e-05,2]
[420487078,1776150247203,500.0,7.509e-05,2]
[420487079,1776150247245,500.0,7.509e-05,2]
[420487080,1776150247304,455.38479192,7.509e-05,2]
[420487081,1776150257600,-44.61520808,7.509e-05,2]
[420487082,1776150257631,-500.0,7.509e-05,2]
[420487083,1776150257659,-500.0,7.509e-05,2]
[420487084,1776150257695,-385.14627252,7.509e-05,2]
[420487085,1776150257731,-500.0,7.509e-05,2]
[420487086,1776150260247,500.0,7.509e-05,2]
[420487087,1776150260308,500.0,7.509e-05,2]
[420487088,1776150260351,500.0,7.509e-05,2]
[420487089,1776150260406,500.0,7.509e-05,2]
[420487090,1776150260461,500.0,7.509e-05,2]
[420487091,1776150260677,500.0,7.509e-05,2]
[420487092,1776150260740,500.0,7.509e-05,2]
[420487093,1776150260794,500.0,7.509e-05,2]
[420487094,1776150260833,500.0,7.509e-05,2]
[420487095,1776150260877,500.0,7.509e-05,2]
[420487096,1776150260927,500.0,7.509e-05,2]
[420487097,1776150260978,500.0,7.509e-05,2]
[420487098,1776150261050,500.0,7.509e-05,2]
[420487099,1776150261139,449.7789194,7.509e-05,2]
[420487104,1776150331206,-382.79746062,7.434e-05,2]
[420487214,1776150432228,-5000.0,6.967e-05,2]
[420487215,1776150432262,-209.690792,7.037e-05,2]
[420487216,1776150432304,-520.0,7.037e-05,2]
[420487217,1776150432326,-156.57307001,7.252e-05,2]
[420487218,1776150432360,-625.66598776,7.252e-05,2]
[420487219,1776150432388,-351.75811309,7.434e-05,2]
[420487220,1776150432411,-300.0,7.508e-05,2]
[420487221,1776150432437,-300.0,7.508e-05,2]
[420487222,1776150432458,-151.0,7.509e-05,2]
[420487223,1776150432481,-151.0,7.509e-05,2]
[420487224,1776150432503,-151.0,7.509e-05,2]
[420487225,1776150432533,-151.0,7.509e-05,2]
[420487226,1776150432565,-151.0,7.509e-05,2]
[420487227,1776150432593,-151.0,7.509e-05,2]
[420487228,1776150432615,-151.0,7.509e-05,2]
[420487229,1776150432643,-151.0,7.509e-05,2]
[420487230,1776150432664,-151.0,7.509e-05,2]
[420487231,1776150432711,-151.0,7.509e-05,2]
[420487232,1776150432742,-151.68053369,7.509e-05,2]
[420487233,1776150432783,-485.51251019,7.509e-05,2]
[420487234,1776150432829,-3736.05198099,7.509e-05,2]
[420487235,1776150432869,-500.0,7.51e-05,2]
[420487236,1776150432924,-500.0,7.51e-05,2]
[420487237,1776150432968,-504.80492157,7.51e-05,2]
[420487238,1776150433019,-204.378,7.711e-05,2]
[420487239,1776150433098,-1200.0,7.824e-05,2]
[420487240,1776150433132,-1765.761626,7.825e-05,2]
[420487241,1776150433162,-173.8711502,7.903e-05,2]
[420487242,1776150433192,-173.8711502,7.903e-05,2]
[420487243,1776150433228,-300.0,7.999e-05,2]
[420487244,1776150433265,-300.0,7.999e-05,2]
[420487245,1776150433312,-500.0,8e-05,2]
[420487246,1776150433362,-508.40262219,8.058e-05,2]
[420487247,1776150433405,-1765.761626,8.107e-05,2]
[420487248,1776150433448,-420.0,8.259e-05,2]
[420487249,1776150433483,-500.0,8.451e-05,2]
[420487250,1776150433517,-314.43332811,8.451e-05,2]
[420487251,1776150450308,-203.11407481,8.451e-05,2]
[420487252,1776150450338,-600.0,8.464e-05,2]
[420487253,1776150450363,-500.0,8.5e-05,2]
[420487254,1776150450394,-500.0,8.536e-05,2]
[420487255,1776150450427,-500.0,8.536e-05,2]
[420487256,1776150450455,-500.0,8.536e-05,2]
[420487257,1776150450503,-500.0,8.536e-05,2]
[420487258,1776150450524,-500.0,8.536e-05,2]
[420487259,1776150450554,-500.0,8.536e-05,2]
[420487260,1776150450579,-500.0,8.536e-05,2]
[420487261,1776150450616,-500.0,8.536e-05,2]
[420487262,1776150450640,-500.0,8.536e-05,2]
[420487263,1776150450668,-500.0,8.536e-05,2]
[420487264,1776150450691,-366.89060835,8.536e-05,2]
[420487265,1776150450723,-1200.0,8.606e-05,2]
[420487266,1776150450749,-500.0,8.725e-05,2]
[420487267,1776150450775,-457.9983993,8.725e-05,2]
[420487268,1776150450805,-300.0,8.799e-05,2]
[420487269,1776150450836,-420.0,8.799e-05,2]
[420487270,1776150450869,-197.63290588,8.8e-05,2]
[420487271,1776150450912,-172.0,8.81e-05,2]
[420487272,1776150450950,-648.0,8.81e-05,2]
[420487273,1776150450983,-340.0,8.81e-05,2]
[420487274,1776150451013,-648.0,8.81e-05,2]
[420487275,1776150451033,-340.0,8.81e-05,2]
[420487276,1776150451063,-648.0,8.81e-05,2]
[420487277,1776150451088,-166.0,8.81e-05,2]
[420487278,1776150451119,-340.0,8.81e-05,2]
[420487279,1776150451151,-648.0,8.81e-05,2]
[420487280,1776150451198,-166.0,8.81e-05,2]
[420487281,1776150451245,-340.0,8.81e-05,2]
[420487282,1776150451271,-648.0,8.81e-05,2]
[420487283,1776150451294,-166.0,8.81e-05,2]
[420487284,1776150451320,-340.0,8.81e-05,2]
[420487285,1776150451345,-648.0,8.81e-05,2]
[420487286,1776150451365,-340.0,8.81e-05,2]
[420487287,1776150451391,-648.0,8.81e-05,2]
[420487288,1776150451410,-361.71427535,8.81e-05,2]
[420487289,1776150451433,-648.0,8.81e-05,2]
[420487290,1776150451454,-648.0,8.81e-05,2]
[420487291,1776150451477,-648.0,8.81e-05,2]
[420487292,1776150451501,-648.0,8.81e-05,2]
[420487293,1776150451522,-648.0,8.81e-05,2]
[420487294,1776150451554,-164.0,8.81e-05,2]
[420487295,1776150451598,-648.0,8.81e-05,2]
[420487296,1776150451628,-648.0,8.81e-05,2]
[420487297,1776150451656,-192.19530194,8.81e-05,2]
[420487298,1776150451691,-648.0,8.81e-05,2]
[420487299,1776150451726,-179.48304583,8.81e-05,2]
[420487300,1776150451746,-500.0,8.873e-05,2]
[420487301,1776150451796,-500.0,8.873e-05,2]
[420487302,1776150451822,-500.0,8.873e-05,2]
[420487303,1776150451847,-500.0,8.873e-05,2]
[420487304,1776150451887,-500.0,8.899e-05,2]
[420487305,1776150451927,-500.0,8.899e-05,2]
[420487306,1776150451973,-500.0,8.899e-05,2]
[420487307,1776150452045,-500.0,8.899e-05,2]
[420487308,1776150452100,-500.0,8.899e-05,2]
[420487309,1776150452147,-500.0,8.899e-05,2]
[420487310,1776150452182,-500.0,8.899e-05,2]
[420487311,1776150452216,-500.0,8.899e-05,2]
[420487312,1776150452247,-500.0,8.899e-05,2]
[420487313,1776150452274,-483.7135998,8.899e-05,2]
[420487314,1776150452307,-500.0,8.899e-05,2]
[420487315,1776150452342,-500.0,8.899e-05,2]
[420487316,1776150452374,-500.0,8.899e-05,2]
[420487317,1776150452413,-500.0,8.899e-05,2]
[420487318,1776150452446,-500.0,8.899e-05,2]
[420487319,1776150452483,-500.0,8.899e-05,2]
[420487320,1776150452518,-500.0,8.899e-05,2]
[420487321,1776150452556,-500.0,8.899e-05,2]
[420487322,1776150452601,-500.0,8.899e-05,2]
[420487323,1776150452698,-500.0,8.899e-05,2]
[420487324,1776150452740,-500.0,8.899e-05,2]
[420487325,1776150452769,-110742.15891974,8.9e-05,2]
[420487624,1776150638775,-517.0,6.867e-05,2]
[420487626,1776150638799,-209.690792,6.867e-05,2]
[420487628,1776150638823,-5000.0,8.366e-05,2]
[420487630,1776150638850,-300.0,8.53e-05,2]
[420487631,1776150638860,-300.0,8.53e-05,2]
[420487632,1776150638870,-300.0,8.53e-05,2]
[420487633,1776150638882,-300.0,8.53e-05,2]
[420487634,1776150638903,-300.0,8.531e-05,2]
[420487635,1776150638913,-1200.0,8.531e-05,2]
[420487636,1776150638922,-300.0,8.532e-05,2]
[420487637,1776150638933,-300.0,8.532e-05,2]
[420487638,1776150638943,-300.0,8.532e-05,2]
[420487639,1776150638953,-300.0,8.532e-05,2]
[420487640,1776150638964,-300.0,8.532e-05,2]
[420487641,1776150638974,-300.0,8.532e-05,2]
[420487642,1776150638985,-300.0,8.532e-05,2]
[420487643,1776150638995,-300.0,8.532e-05,2]
[420487644,1776150639007,-300.0,8.532e-05,2]
[420487645,1776150639017,-300.0,8.532e-05,2]
[420487646,1776150639029,-300.0,8.532e-05,2]
[420487647,1776150639038,-300.0,8.532e-05,2]
[420487648,1776150639050,-300.0,8.532e-05,2]
[420487649,1776150639060,-300.0,8.532e-05,2]
[420487650,1776150639074,-300.0,8.532e-05,2]
[420487651,1776150639085,-432.26394228,8.583e-05,2]
[420487652,1776150639101,-642.82719978,8.659e-05,2]
[420487653,1776150639111,-655.25130194,8.675e-05,2]
[420487654,1776150639121,-196.3265866,8.793e-05,2]
[420487655,1776150639132,-241.15525482,8.8e-05,2]
[420487656,1776150639147,-389.97621457,8.8e-05,2]
[420487657,1776150639157,-441.75243514,8.8e-05,2]
[420487658,1776150639168,-174.63989587,8.8e-05,2]
[420487659,1776150639179,-55576.5818631,8.892e-05,2]
[420487660,1776150639192,-262.31007143,8.977e-05,2]
[420487661,1776150639204,-2013.75381996,8.977e-05,2]
[420487662,1776150639221,-9865.0429818,9e-05,2]
[420487663,1776150639231,-502.22319693,9.003e-05,2]
[420487664,1776150639241,-88398.87206342,9.023e-05,2]
[420487665,1776150639416,-7730.48475387,9.023e-05,2]
[420487737,1776150647159,171.29744934,8.71e-05,30]
[420487738,1776150648038,171.29744934,8.78e-05,30]
[420487750,1776150650955,-0.06675898,6.798e-05,2]
[420487751,1776150651171,-4999.93324102,6.798e-05,2]
[420487752,1776150651184,-171.29744934,6.798e-05,2]
[420487753,1776150651204,-9514.3880934,8.306e-05,2]
[420487754,1776150651216,-473.0,8.71e-05,2]
[420487755,1776150651235,-5725.10934562,8.71e-05,2]
[420487756,1776150651865,-2553.135268,8.71e-05,2]
[420487757,1776150651880,-3752.80212337,8.71e-05,2]
[420487758,1776150651925,-395.022,8.71e-05,2]
[420487759,1776150651941,-4470.94099561,8.71e-05,2]
[420488338,1776151644168,-5000.0,7.35e-05,2]
[420488339,1776151644209,-471.87628355,7.424e-05,2]
[420488340,1776151644238,-1885.61762907,7.424e-05,2]
[420488341,1776151644274,-300.0,7.736e-05,2]
[420488342,1776151644330,-300.0,7.736e-05,2]
[420488343,1776151644374,-300.0,7.736e-05,2]
[420488344,1776151644433,-529.0,7.736e-05,2]
[420488345,1776151644521,-300.0,7.736e-05,2]
[420488346,1776151644554,-300.0,7.736e-05,2]
[420488347,1776151644603,-432.26394228,7.776e-05,2]
[420488348,1776151644631,-1200.0,7.814e-05,2]
[420488349,1776151644676,-364.1182835,7.815e-05,2]
[420488350,1776151644725,-1456.47313402,7.815e-05,2]
[420488351,1776151644770,-1790.54084068,7.815e-05,2]
[420489431,1776151838183,-300.0,7.275e-05,2]
[420489432,1776151838214,-300.0,7.275e-05,2]
[420489433,1776151838225,-300.0,7.275e-05,2]
[420489434,1776151838240,-300.0,7.275e-05,2]
[420489435,1776151838269,-300.0,7.275e-05,2]
[420489436,1776151838282,-5000.0,7.276e-05,2]
[420489437,1776151838302,-523.0,7.276e-05,2]
[420489438,1776151838318,-423.61866343,7.348e-05,2]
[420489439,1776151838329,-1200.0,7.42e-05,2]
[420489440,1776151838341,-300.0,7.421e-05,2]
[420489441,1776151838359,-300.0,7.421e-05,2]
[420489442,1776151838370,-300.0,7.421e-05,2]
[420489443,1776151838382,-300.0,7.421e-05,2]
[420489444,1776151838393,-300.0,7.421e-05,2]
[420489445,1776151838403,-300.0,7.421e-05,2]
[420489448,1776151838414,-300.0,7.421e-05,2]
[420489449,1776151838427,-300.0,7.421e-05,2]
[420489450,1776151838438,-300.0,7.421e-05,2]
[420489451,1776151838451,-300.0,7.421e-05,2]
[420489452,1776151838465,-300.0,7.421e-05,2]
[420489453,1776151838478,-300.0,7.421e-05,2]
[420489454,1776151838496,-300.0,7.421e-05,2]
[420489455,1776151838507,-300.0,7.421e-05,2]
[420489456,1776151838526,-300.0,7.421e-05,2]
[420489457,1776151838557,-600.0,7.568e-05,2]
[420489458,1776151838579,-1486.52371086,7.815e-05,2]
[420489459,1776151838627,-5820.06664353,7.815e-05,2]
[420489460,1776151838658,-412.52099469,7.815e-05,2]
[420489461,1776151838684,-1650.08397876,7.815e-05,2]
[420489462,1776151838694,-3708.97626326,7.815e-05,2]
[420489463,1776151838705,-1614.54613987,7.815e-05,2]
[420489464,1776151838727,-3629.09608588,7.815e-05,2]
[420489465,1776151838737,-819.06412742,7.815e-05,2]
[420489466,1776151838749,-420.0,8.003e-05,2]
[420489467,1776151838781,-227.0,8.003e-05,2]
[420489468,1776151838791,-287.0,8.003e-05,2]
[420489469,1776151838802,-241.0,8.003e-05,2]
[420489470,1776151838827,-1680.0,8.162e-05,2]
[420489471,1776151838838,-403.63653497,8.226e-05,2]
[420489472,1776151838869,-720.0,8.325e-05,2]
[420489473,1776151838883,-597.95306065,8.393e-05,2]
[420489474,1776151838895,-500.0,8.407e-05,2]
[420489475,1776151838927,-500.0,8.407e-05,2]
[420489476,1776151838938,-241.95269713,8.407e-05,2]
[420489477,1776151838948,-500.0,8.407e-05,2]
[420489478,1776151838968,-500.0,8.407e-05,2]
[420489479,1776151838977,-500.0,8.407e-05,2]
[420489480,1776151838992,-500.0,8.407e-05,2]
[420489481,1776151839011,-500.0,8.407e-05,2]
[420489482,1776151839021,-500.0,8.407e-05,2]
[420489483,1776151839035,-239.26466877,8.407e-05,2]
[420489484,1776151839045,-500.0,8.407e-05,2]
[420489485,1776151839060,-500.0,8.407e-05,2]
[420489486,1776151839075,-412297.91078746,8.408e-05,2]
[420489487,1776151839088,-1907.9322627,8.408e-05,2]
[420489488,1776151839122,-1328.15817245,8.408e-05,2]
[420489489,1776151839149,-28264.96675449,8.408e-05,2]
[420489490,1776151839170,-1437.21047514,8.408e-05,2]
[420489491,1776151839217,-33671.52473938,8.408e-05,2]
[420489493,1776151840676,-4197.25910506,8.144e-05,2]
[420489495,1776151840705,-802.74089494,8.144e-05,2]
[420489496,1776151840715,-1431.33142325,8.408e-05,2]
[420489514,1776151843151,-500.0,8.407e-05,2]
[420489515,1776151843174,-354.51400705,8.407e-05,2]
[420489516,1776151843189,-500.0,8.407e-05,2]
[420489517,1776151843230,-500.0,8.407e-05,2]
[420489518,1776151843250,-440.92779339,8.407e-05,2]
[420489519,1776151843274,-500.0,8.407e-05,2]
[420489520,1776151843285,-500.0,8.407e-05,2]
[420489521,1776151843305,-500.0,8.407e-05,2]
[420489522,1776151843321,-500.0,8.407e-05,2]
[420489523,1776151843334,-500.0,8.407e-05,2]
[420489524,1776151843355,-208.94799189,8.407e-05,2]
[420489525,1776151843387,-500.0,8.407e-05,2]
[420489526,1776151843397,-4495.61020767,8.408e-05,2]
[420489527,1776151843594,-500.0,8.407e-05,2]
[420489528,1776151843617,-500.0,8.407e-05,2]
[420489529,1776151843638,-500.0,8.407e-05,2]
[420489530,1776151843657,-500.0,8.407e-05,2]
[420489531,1776151843692,-500.0,8.407e-05,2]
[420489532,1776151843702,-1500.0,8.408e-05,2]
[420489537,1776151846497,-500.0,8.407e-05,2]
[420489538,1776151846513,-500.0,8.407e-05,2]
[420489539,1776151846526,-500.0,8.407e-05,2]
[420489540,1776151846541,-500.0,8.407e-05,2]
[420489541,1776151846551,-500.0,8.407e-05,2]
[420489542,1776151846567,-500.0,8.407e-05,2]
[420489543,1776151846579,-500.0,8.407e-05,2]
[420489544,1776151846591,-500.0,8.407e-05,2]
[420489545,1776151846602,-500.0,8.407e-05,2]
[420489546,1776151846618,-500.0,8.407e-05,2]
[420489547,1776151846631,-500.0,8.407e-05,2]
[420489548,1776151846641,-500.0,8.407e-05,2]
[420489549,1776151846661,-500.0,8.407e-05,2]
[420489550,1776151846680,-500.0,8.407e-05,2]
[420489551,1776151846692,-500.0,8.407e-05,2]
[420489552,1776151846726,-500.0,8.407e-05,2]
[420489553,1776151846737,-500.0,8.407e-05,2]
[420489554,1776151846765,-500.0,8.407e-05,2]
[420489555,1776151846778,-500.0,8.407e-05,2]
[420489556,1776151846792,-12447.03036072,8.408e-05,2]
[420489557,1776151846823,-500.0,8.407e-05,2]
[420489558,1776151846839,-14331.90859975,8.408e-05,2]
[420490521,1776151881862,-1151.0,8.323e-05,2]
[420491729,1776152202248,-151.0,9.023e-05,30]
[420491730,1776152203448,-20.29744934,9.023e-05,30]
[420491731,1776152630963,-298.0,6.809e-05,29]
[420491733,1776152830109,-151.0,6.802e-05,16]
[420491734,1776152830130,-5000.0,6.829e-05,2]
[420491735,1776152830168,-415.14629016,6.97e-05,2]
[420491736,1776152830198,-716.65118735,7.176e-05,2]
[420491737,1776152830218,-2863.73814467,7.176e-05,2]
[420491738,1776152830247,-1200.0,7.244e-05,2]
[420491739,1776152830283,-300.0,7.244e-05,2]
[420491740,1776152830310,-1048.0,7.245e-05,2]
[420491741,1776152830339,-300.0,7.245e-05,2]
[420491742,1776152830376,-300.0,7.245e-05,2]
[420491743,1776152830460,-300.0,7.245e-05,2]
[420491744,1776152830569,-209.690792,7.295e-05,2]
[420491745,1776152830628,-266.1591198,7.395e-05,2]
[420491746,1776152830665,-300.0,7.453e-05,2]
[420491747,1776152830698,-2147.99544829,7.454e-05,2]
[420491748,1776152830726,-5311.94809319,7.654e-05,2]
[420491749,1776152830758,-5324.10181483,7.754e-05,2]
[420491750,1776152830786,-300.0,7.908e-05,2]
[420491751,1776152830812,-300.0,7.908e-05,2]
[420491752,1776152830843,-300.0,7.908e-05,2]
[420491753,1776152830871,-300.0,7.908e-05,2]
[420491754,1776152830898,-300.0,7.908e-05,2]
[420491755,1776152830929,-300.0,7.908e-05,2]
[420491756,1776152830958,-300.0,7.908e-05,2]
[420491757,1776152830986,-300.0,7.908e-05,2]
[420491758,1776152831021,-300.0,7.908e-05,2]
[420491759,1776152831051,-300.0,7.908e-05,2]
[420491760,1776152831081,-300.0,7.908e-05,2]
[420491761,1776152831126,-300.0,7.908e-05,2]
[420491762,1776152831158,-300.0,7.908e-05,2]
[420491763,1776152831214,-300.0,7.908e-05,2]
[420491764,1776152831247,-300.0,7.908e-05,2]
[420491765,1776152831269,-304.268,7.908e-05,2]
[420491766,1776152831305,-1200.0,7.968e-05,2]
[420491767,1776152831341,-420.0,7.968e-05,2]
[420491768,1776152831385,-420.0,7.97e-05,2]
[420491769,1776152831439,-420.0,7.97e-05,2]
[420491770,1776152831526,-501.18441417,8.02e-05,2]
[420491771,1776152831575,-500.0,8.143e-05,2]
[420491772,1776152831621,-245.43866577,8.159e-05,2]
[420491773,1776152831656,-500.0,8.159e-05,2]
[420491774,1776152831695,-500.0,8.159e-05,2]
[420491775,1776152831755,-500.0,8.159e-05,2]
[420491776,1776152831792,-500.0,8.159e-05,2]
[420491777,1776152831842,-500.0,8.159e-05,2]
[420491778,1776152831885,-500.0,8.159e-05,2]
[420491779,1776152831951,-500.0,8.159e-05,2]
[420491780,1776152831978,-248.84512356,8.159e-05,2]
[420491781,1776152832011,-500.0,8.159e-05,2]
[420491782,1776152832037,-500.0,8.159e-05,2]
[420491783,1776152832067,-500.0,8.159e-05,2]
[420491784,1776152832110,-500.0,8.159e-05,2]
[420491785,1776152832135,-500.0,8.159e-05,2]
[420491786,1776152832180,-500.0,8.159e-05,2]
[420491787,1776152832226,-500.0,8.159e-05,2]
[420491788,1776152832266,-500.0,8.159e-05,2]
[420491789,1776152832296,-500.0,8.159e-05,2]
[420491790,1776152832320,-500.0,8.159e-05,2]
[420491791,1776152832349,-500.0,8.159e-05,2]
[420491792,1776152832380,-500.0,8.159e-05,2]
[420491793,1776152832406,-500.0,8.159e-05,2]
[420491794,1776152832429,-500.0,8.159e-05,2]
[420491795,1776152832463,-500.0,8.159e-05,2]
[420491796,1776152832495,-500.0,8.159e-05,2]
[420491797,1776152832561,-500.0,8.159e-05,2]
[420491798,1776152832590,-500.0,8.159e-05,2]
[420491799,1776152832647,-500.0,8.159e-05,2]
[420491800,1776152832685,-500.0,8.159e-05,2]
[420491801,1776152832715,-500.0,8.159e-05,2]
[420491802,1776152832751,-500.0,8.159e-05,2]
[420491803,1776152832792,-500.0,8.159e-05,2]
[420491804,1776152832822,-500.0,8.159e-05,2]
[420491805,1776152832845,-500.0,8.159e-05,2]
[420491806,1776152832877,-500.0,8.159e-05,2]
[420491807,1776152832903,-500.0,8.159e-05,2]
[420491808,1776152832938,-550.0,8.159e-05,2]
[420491809,1776152832978,-500.0,8.159e-05,2]
[420491810,1776152833014,-500.0,8.159e-05,2]
[420491811,1776152833049,-500.0,8.159e-05,2]
[420491812,1776152833072,-500.0,8.159e-05,2]
[420491813,1776152833103,-500.0,8.159e-05,2]
[420491814,1776152833125,-500.0,8.159e-05,2]
[420491815,1776152833155,-500.0,8.159e-05,2]
[420491816,1776152833179,-500.0,8.159e-05,2]
[420491817,1776152833207,-500.0,8.161e-05,2]
[420491818,1776152833236,-500.0,8.161e-05,2]
[420491819,1776152833262,-500.0,8.161e-05,2]
[420491820,1776152833290,-500.0,8.161e-05,2]
[420491821,1776152833317,-288.25445334,8.161e-05,2]
[420491822,1776152833344,-500.0,8.161e-05,2]
[420491823,1776152833551,-1002.05900426,8.161e-05,2]
[420491824,1776152833582,-1002.05900426,8.161e-05,2]
[420491825,1776152833611,-1002.05900426,8.161e-05,2]
[420491826,1776152833659,-1002.05900426,8.161e-05,2]
[420491827,1776152833704,-1002.05900426,8.161e-05,2]
[420491828,1776152833754,-1002.05900426,8.161e-05,2]
[420491829,1776152833779,-1002.05900426,8.161e-05,2]
[420491830,1776152833815,-1002.05900426,8.161e-05,2]
[420491831,1776152833858,-1002.05900426,8.161e-05,2]
[420491832,1776152833910,-1033.26432334,8.161e-05,2]
[420491833,1776152833960,-1033.26432334,8.161e-05,2]
[420491834,1776152834011,-1033.26432334,8.161e-05,2]
[420491835,1776152834043,-1033.26432334,8.161e-05,2]
[420491836,1776152834066,-1033.26432334,8.161e-05,2]
[420491837,1776152834096,-1033.26432334,8.161e-05,2]
[420491838,1776152834127,-1033.26432334,8.161e-05,2]
[420491839,1776152834153,-1100.87297659,8.161e-05,2]
[420491840,1776152834182,-1100.87297659,8.161e-05,2]
[420491841,1776152834209,-1100.87297659,8.161e-05,2]
[420491842,1776152834234,-54325.81106058,8.162e-05,2]
[420491896,1776153032916,-531.0,7.902e-05,2]
[420491898,1776153032926,-406.84336436,7.902e-05,2]
[420491900,1776153032937,-1177.174418,7.902e-05,2]
[420491902,1776153032952,-6648.76641854,7.96e-05,2]
[420492140,1776153038526,-3397.67616382,7.879e-05,2]
[420492142,1776153038617,-1602.32383618,7.879e-05,2]
[420492143,1776153038628,-500.0,7.959e-05,2]
[420492144,1776153038640,-500.0,7.959e-05,2]
[420492145,1776153038671,-500.0,7.959e-05,2]
[420492146,1776153038681,-500.0,7.959e-05,2]
[420492147,1776153038694,-500.0,7.959e-05,2]
[420492148,1776153038727,-500.0,7.959e-05,2]
[420492149,1776153038737,-500.0,7.959e-05,2]
[420492150,1776153038764,-500.0,7.959e-05,2]
[420492151,1776153038774,-500.0,7.959e-05,2]
[420492152,1776153038786,-500.0,7.959e-05,2]
[420492153,1776153038819,-500.0,7.959e-05,2]
[420492154,1776153038830,-500.0,7.959e-05,2]
[420492155,1776153038846,-500.0,7.959e-05,2]
[420492156,1776153038865,-500.0,7.959e-05,2]
[420492157,1776153038898,-17903.07727313,7.96e-05,2]
[420492158,1776153038930,-1341.20465332,7.96e-05,2]
[420492159,1776153038964,-1689.57102003,7.96e-05,2]
[420492160,1776153038982,-56361.12733284,7.96e-05,2]
[420492178,1776153046630,-596.01200342,7.959e-05,2]
[420492179,1776153046647,-300.74004819,7.959e-05,2]
[420492180,1776153046886,-295.27195523,7.959e-05,2]
[420492181,1776153046905,-596.01200342,7.959e-05,2]
[420492182,1776153046931,-596.01200342,7.959e-05,2]
[420492183,1776153046946,-596.01200342,7.959e-05,2]
[420492184,1776153046963,-596.01200342,7.959e-05,2]
[420492185,1776153046973,-4427.90090999,7.96e-05,2]
[420492186,1776153046990,-2452.93688462,7.96e-05,2]
[420492187,1776153047031,-596.01200342,7.959e-05,2]
[420492188,1776153047042,-56632.33910144,7.96e-05,2]
[420492189,1776153047059,-785.90876817,7.96e-05,2]
[420492268,1776153662132,-1246.48,7.568e-05,2]
[420492274,1776153778925,-218.0,7.567e-05,2]
[420492275,1776153778949,-782.0,7.568e-05,2]
[420492276,1776153780314,-1000.0,7.568e-05,2]
[420492277,1776153780622,-1000.0,7.568e-05,2]
[420492278,1776153780930,-971.52,7.568e-05,2]
[420492279,1776153780956,-28.48,7.599e-05,2]
[420492280,1776153781426,-1000.0,7.6e-05,2]
[420492281,1776153781596,-1000.0,7.6e-05,2]
[420492282,1776153782060,-1000.0,7.6e-05,2]
[420492283,1776153782465,-300.0,7.599e-05,2]
[420492284,1776153782495,-700.0,7.6e-05,2]
[420492285,1776153782755,-1000.0,7.6e-05,2]
[420492286,1776153783077,-1000.0,7.6e-05,2]
[420492287,1776153783675,-1000.0,7.6e-05,2]
[420492288,1776153785060,-1000.0,7.6e-05,2]
[420492289,1776153792848,-870.0,7.6e-05,2]
[420492292,1776153828186,-1000.0,7.524e-05,2]
[420492293,1776153829243,-1000.0,7.524e-05,2]
[420492294,1776153830125,-1000.0,7.524e-05,2]
[420492295,1776153830488,-1000.0,7.524e-05,2]
[420492296,1776153830868,-1000.0,7.524e-05,2]
[420492297,1776153831273,-526.0,7.524e-05,2]
[420492298,1776153831348,-474.0,7.6e-05,2]
[420492299,1776153833076,-1000.0,7.6e-05,2]
[420492300,1776153834293,-1000.0,7.6e-05,2]
[420492302,1776154000213,-151.0,9.051e-05,30]
[420492303,1776154001914,-20.29744934,9.051e-05,30]
[420492305,1776154036203,-525.0,7.467e-05,2]
[420492306,1776154036253,-209.690792,7.467e-05,2]
[420492307,1776154036304,-5000.0,7.524e-05,2]
[420492308,1776154036343,-415.65470172,7.562e-05,2]
[420492309,1776154036387,-300.0,7.599e-05,2]
[420492310,1776154036427,-4835.90973668,7.6e-05,2]
[420492311,1776154036451,-243.415,7.703e-05,2]
[420492312,1776154036484,-58072.97172973,7.76e-05,2]
[420492322,1776154158144,-300.0,6.932e-05,18]
[420492323,1776154158177,-300.0,6.932e-05,7]